bitfinex/quotes_ETHUSD_20230109
["timestamp","ask_amount","ask_price","bid_price","bid_amount"]
[1673308282482,24.41221806,1321.0,1320.9,2.81731752]
[1673308282689,16.90819806,1321.0,1320.9,2.81731752]
[1673308282899,25.69721806,1321.0,1320.9,2.81731752]
[1673308283127,26.83062261,1321.0,1320.9,2.81731752]
[1673308284167,19.26060261,1321.0,1320.9,2.81731752]
[1673308284481,26.83062261,1321.0,1320.9,2.81731752]
[1673308284925,25.12846455,1321.0,1320.9,2.81731752]
[1673308288684,25.12846455,1321.0,1320.9,2.81451548]
[1673308288890,28.92612519,1321.0,1320.9,2.81451548]
[1673308291354,2.41840455,1321.0,1320.9,2.81451548]
[1673308291568,2.42240455,1321.1,1320.9,10.38510548]
[1673308291777,6.15406519,1321.1,1320.9,10.45110548]
[1673308291972,6.22006519,1321.1,1320.9,10.45110548]
[1673308293139,0.066,1321.1,1320.9,2.88051548]
[1673308293394,7.56954,1321.1,1320.9,2.81451548]
[1673308293524,7.63554,1321.1,1320.9,2.81451548]
[1673308294568,15.20498,1321.1,1320.9,2.81451548]
[1673308295327,15.20488,1321.1,1320.9,2.81451548]
[1673308297234,22.77432,1321.1,1320.9,2.81451548]
[1673308302169,23.90772455,1321.1,1320.9,2.81451548]
[1673308302456,22.77432,1321.1,1320.9,2.81451548]
[1673308302867,23.90772455,1321.1,1320.9,2.81451548]
[1673308311276,16.33828455,1321.1,1320.9,2.81451548]
[1673308312163,8.76884455,1321.1,1320.9,2.81451548]
[1673308312697,1.19940455,1321.1,1320.9,10.38501548]
[1673308312868,8.70298455,1321.1,1320.9,2.88051548]
[1673308313083,1.19940455,1321.1,1320.9,2.81451548]
[1673308313273,1.13340455,1321.1,1320.9,2.81451548]
[1673308313486,1.13340455,1321.1,1320.9,10.38503548]
[1673308313735,1.13540455,1321.1,1320.9,10.44903548]
[1673308313956,1.13340455,1321.1,1320.9,10.45103548]
[1673308314266,8.70295455,1321.1,1320.9,2.88051548]
[1673308314481,8.76895455,1321.1,1320.9,2.81451548]
[1673308315055,1.13340455,1321.0,1320.9,2.81451548]
[1673308315269,2.83556261,1321.0,1320.9,2.8119246]
[1673308315524,24.41221806,1321.0,1320.9,2.8119246]
[1673308315687,35.53668633,1321.0,1320.9,2.8119246]
[1673308316966,33.83452827,1321.0,1320.9,2.8119246]
[1673308317366,37.63218891,1321.0,1320.9,2.8119246]
[1673308318243,40.46649925,1321.0,1320.9,2.8119246]
[1673308320941,38.19905098,1321.0,1320.9,2.8119246]
[1673308321569,43.52338412,1321.0,1320.9,2.8119246]
[1673308322104,44.09138412,1321.0,1320.9,2.8119246]
[1673308322560,43.52338412,1321.0,1320.9,2.8119246]
[1673308323094,44.2797413,1321.0,1320.9,2.8119246]
[1673308323308,49.8147413,1321.0,1320.9,2.8119246]
[1673308323465,49.8057413,1321.0,1320.9,2.8119246]
[1673308323723,1.55158371,1320.8,1320.6,0.11234132]
[1673308323975,34.34545621,1320.7,1320.6,1.32e-06]
[1673308324170,34.41145621,1320.7,1320.6,1.32e-06]
[1673308325101,31.85937685,1320.7,1320.6,1.32e-06]
[1673308325522,34.1251005,1320.7,1320.6,1.32e-06]
[1673308325873,32.98881162,1320.7,1320.6,1.32e-06]
[1673308327416,30.72308797,1320.7,1320.6,1.32e-06]
[1673308328030,31.85520548,1320.7,1320.6,1.32e-06]
[1673308328507,6.21777815,1320.7,1320.6,15.14462132]
[1673308328663,4.99577815,1320.7,1320.6,15.21062132]
[1673308328873,4.92977815,1320.7,1320.6,15.21062132]
[1673308329192,3.79766064,1320.7,1320.6,15.21062132]
[1673308329399,3.79766064,1320.7,1320.6,7.63831132]
[1673308331412,3.79766064,1320.7,1320.6,0.06600132]
[1673308331741,3.79766064,1320.7,1320.6,1.32e-06]
[1673308335537,11.36940064,1320.7,1320.6,1.32e-06]
[1673308335715,19.00714064,1320.7,1320.6,1.32e-06]
[1673308335925,3.86366064,1320.7,1320.6,1.32e-06]
[1673308336152,3.79766064,1320.7,1320.6,1.32e-06]
[1673308336376,18.94114064,1320.7,1320.6,1.32e-06]
[1673308336573,19.00714064,1320.7,1320.6,1.32e-06]
[1673308336779,20.23714064,1320.7,1320.6,1.32e-06]
[1673308337441,21.36925815,1320.7,1320.6,1.32e-06]
[1673308337636,13.79751815,1320.7,1320.6,1.32e-06]
[1673308338291,13.84751815,1320.7,1320.6,1.32e-06]
[1673308338450,13.79751815,1320.7,1320.6,1.32e-06]
[1673308338662,12.66540064,1320.7,1320.6,1.32e-06]
[1673308338976,12.66540064,1320.7,1320.6,7.57231132]
[1673308338977,1.296,1320.7,1320.6,7.57231132]
[1673308339204,1.23,1320.7,1320.6,7.63831132]
[1673308339399,1.23,1320.7,1320.6,22.78293132]
[1673308339604,12.81240122,1320.8,1320.6,22.78293132]
[1673308339869,15.39006186,1320.8,1320.6,22.78293132]
[1673308340192,11.59240122,1320.8,1320.6,22.78293132]
[1673308340391,1.61758371,1320.8,1320.6,22.78293132]
[1673308340555,1.55158371,1320.8,1320.6,22.78293132]
[1673308345553,1.55158371,1320.8,1320.6,30.35524132]
[1673308353493,1.55158371,1320.8,1320.6,22.78293132]
[1673308353701,1.55158371,1320.8,1320.6,26.91345031]
[1673308353947,1.55158371,1320.8,1320.6,34.48576031]
[1673308357277,1.55158371,1320.8,1320.6,37.3037634]
[1673308357641,1.54920408,1320.8,1320.6,37.3037634]
[1673308360531,2.26572365,1321.1,1320.7,8.54756186]
[1673308360739,1.69949676,1321.0,1320.8,11.92335517]
[1673308360949,2.83549621,1321.2,1321.1,23.76923855]
[1673308361160,4.03084132,1321.3,1321.1,1.12691855]
[1673308361430,1.7011833,1321.3,1321.1,1.06091855]
[1673308361573,1.6991833,1321.3,1321.1,1.06091855]
[1673308362458,1.6991833,1321.3,1321.1,8.63027855]
[1673308362630,1.6991833,1321.3,1321.1,8.69627855]
[1673308363409,6.53084132,1321.4,1321.1,8.69627855]
[1673308363733,4.03084132,1321.4,1321.1,8.69627855]
[1673308363886,3.96484132,1321.4,1321.1,16.26571855]
[1673308364971,3.96484132,1321.4,1321.1,23.83515855]
[1673308367184,4.01484132,1321.4,1321.1,23.83515855]
[1673308367344,11.58265132,1321.4,1321.1,23.83515855]
[1673308367552,4.08084132,1321.4,1321.1,23.83515855]
[1673308367765,4.01484132,1321.4,1321.1,23.83515855]
[1673308369432,3.96484132,1321.4,1321.1,23.83515855]
[1673308370026,11.53259132,1321.4,1321.1,23.83515855]
[1673308370253,11.59859132,1321.4,1321.1,23.83515855]
[1673308370684,1.13075346,1321.3,1321.1,23.83515855]
[1673308370881,1.13075346,1321.3,1321.1,28.03024541]
[1673308375098,18.03158676,1321.4,1321.1,28.03024541]
[1673308375718,10.46370676,1321.4,1321.1,28.03024541]
[1673308376731,2.89593676,1321.4,1321.1,28.03024541]
[1673308376942,2.82993676,1321.4,1321.1,28.03024541]
[1673308377396,10.39773676,1321.4,1321.1,28.03024541]
[1673308377624,10.46373676,1321.4,1321.1,28.03024541]
[1673308377813,2.89593676,1321.4,1321.1,28.03024541]
[1673308378005,2.82993676,1321.4,1321.1,28.03024541]
[1673308378225,1.13075346,1321.3,1321.1,28.03024541]
[1673308379361,1.13075346,1321.3,1321.1,23.83515855]
[1673308386359,2.82993676,1321.4,1321.1,23.83515855]
[1673308388663,2.82993676,1321.4,1321.1,31.40459855]
[1673308389890,2.87993676,1321.4,1321.1,31.40459855]
[1673308390103,2.82993676,1321.4,1321.1,31.40459855]
[1673308390757,1.13075346,1321.3,1321.1,31.40459855]
[1673308390968,1.13075346,1321.3,1321.1,35.59966841]
[1673308395180,2.82993676,1321.4,1321.1,39.11028946]
[1673308395339,1.13075346,1321.4,1321.2,4.72987234]
[1673308395556,2.98218554,1321.5,1321.3,30.2732]
[1673308395871,1.21700224,1321.5,1321.4,2.5]
[1673308396279,1.21700224,1321.5,1321.4,25.20319]
[1673308396535,1.21700224,1321.5,1321.4,25.26919]
[1673308396697,1.21700224,1321.5,1321.4,7.63373]
[1673308396698,2.91618554,1321.5,1321.4,7.63373]
[1673308397374,2.91845572,1321.5,1321.4,7.63373]
[1673308398799,1.78543208,1321.5,1321.4,7.63373]
[1673308399045,1.78543208,1321.5,1321.4,22.76919]
[1673308399378,4.0510901,1321.5,1321.4,24.80152563]
[1673308401139,1.78543208,1321.5,1321.4,24.80152563]
[1673308403169,2.91846256,1321.5,1321.4,24.80152563]
[1673308403474,1.78543208,1321.5,1321.4,24.80152563]
[1673308403847,1.78543208,1321.5,1321.4,17.23379563]
[1673308404056,1.78543208,1321.5,1321.4,15.20146]
[1673308405571,1.78543208,1321.5,1321.4,7.63373]
[1673308406483,2.91834546,1321.5,1321.4,25.26919]
[1673308407906,2.91834546,1321.5,1321.4,22.76919]
[1673308409142,2.91834546,1321.5,1321.4,15.20146]
[1673308411417,1.21916216,1321.5,1321.4,17.728396]
[1673308411980,1.21916216,1321.5,1321.4,25.296126]
[1673308412466,1.21916216,1321.5,1321.4,17.728396]
[1673308413511,2.91834546,1321.5,1321.4,17.728396]
[1673308414173,1.21916216,1321.5,1321.4,17.728396]
[1673308415213,1.21916216,1321.5,1321.4,15.20146]
[1673308421517,1.21916216,1321.5,1321.4,15.19822137]
[1673308428559,1.21916216,1321.5,1321.4,22.76595137]
[1673308431399,2.91834546,1321.5,1321.4,22.76595137]
[1673308432076,1.21916216,1321.5,1321.4,22.76595137]
[1673308432285,2.91834546,1321.5,1321.4,22.76595137]
[1673308433613,2.91834546,1321.5,1321.4,23.88732826]
[1673308433824,0.08624878,1321.5,1321.4,33.33272267]
[1673308434077,0.08624878,1321.5,1321.4,40.93520829]
[1673308434462,0.08624878,1321.5,1321.4,44.45090839]
[1673308435008,0.08624878,1321.5,1321.4,43.88310839]
[1673308435343,0.08624878,1321.5,1321.4,32.79967829]
[1673308436765,0.08624878,1321.5,1321.4,36.59733893]
[1673308437018,0.08624878,1321.5,1321.4,44.16506893]
[1673308437232,0.08624878,1321.5,1321.4,36.59733893]
[1673308438771,0.08624878,1321.5,1321.4,36.61148728]
[1673308443023,1.22144759,1321.7,1321.6,4.76009589]
[1673308443188,1.22144759,1321.7,1321.6,35.50242548]
[1673308443406,1.22144759,1321.7,1321.6,35.56842548]
[1673308443610,1.22144759,1321.7,1321.6,33.06842548]
[1673308444018,0.08810955,1321.7,1321.6,29.29950612]
[1673308444228,1.22144759,1321.7,1321.6,29.29950612]
[1673308444677,0.08810955,1321.7,1321.6,29.29950612]
[1673308447127,0.08810955,1321.7,1321.6,29.31611418]
[1673308449124,0.08810955,1321.7,1321.6,36.88269418]
[1673308449288,2.98364018,1321.9,1321.7,2.5]
[1673308449494,0.0833822,1321.9,1321.8,30.01597471]
[1673308449762,0.0833822,1321.9,1321.8,34.30897471]
[1673308450383,0.0833822,1321.9,1321.8,30.78698064]
[1673308450750,0.0833822,1321.9,1321.8,34.31246514]
[1673308450995,0.0833822,1321.9,1321.8,35.77165689]
[1673308454757,0.0833822,1321.9,1321.8,39.29709364]
[1673308454955,0.0833822,1321.9,1321.8,35.77165689]
[1673308455170,0.0833822,1321.9,1321.8,39.29709361]
[1673308455532,0.0833822,1321.9,1321.8,35.77165689]
[1673308458631,0.0833822,1321.9,1321.8,39.29745945]
[1673308458843,0.0833822,1321.9,1321.8,48.08889945]
[1673308462884,0.1042608,1322.1,1322.0,1.30115032]
[1673308463099,0.1042608,1322.1,1322.0,35.73608599]
[1673308463307,0.1042608,1322.1,1322.0,35.80208599]
[1673308464885,0.1042608,1322.1,1322.0,38.80208599]
[1673308465248,0.1042608,1322.1,1322.0,42.33045257]
[1673308465463,0.1042608,1322.1,1322.0,38.80208599]
[1673308465710,0.1042608,1322.1,1322.0,42.33121316]
[1673308467086,0.1042608,1322.1,1322.0,11.01255535]
[1673308467298,1.4032608,1322.1,1322.0,0.06615032]
[1673308467463,24.0944208,1322.1,1322.0,0.00215032]
[1673308467675,24.1604208,1322.1,1322.0,0.00215032]
[1673308467888,16.5967008,1322.1,1322.0,0.00215032]
[1673308468868,9.0329808,1322.1,1322.0,0.00215032]
[1673308469087,10.16631884,1322.1,1322.0,0.00215032]
[1673308471885,21.93095878,1322.1,1322.0,0.00215032]
[1673308472100,29.49467878,1322.1,1322.0,0.00215032]
[1673308472305,14.36723878,1322.1,1322.0,0.00215032]
[1673308472860,21.93095878,1322.1,1322.0,0.00215032]
[1673308473374,20.79762074,1322.1,1322.0,0.00215032]
[1673308473763,18.29762074,1322.1,1322.0,0.00215032]
[1673308473972,10.73390074,1322.1,1322.0,0.00215032]
[1673308474442,13.23390074,1322.1,1322.0,0.00215032]
[1673308474660,28.36134074,1322.1,1322.0,0.00215032]
[1673308475392,18.29762074,1322.1,1322.0,0.00215032]
[1673308475765,20.56327876,1322.1,1322.0,0.00215032]
[1673308475983,18.29762074,1322.1,1322.0,0.00215032]
[1673308476177,25.86134074,1322.1,1322.0,0.00215032]
[1673308476411,20.56327876,1322.1,1322.0,0.00215032]
[1673308477050,28.12699876,1322.1,1322.0,0.00215032]
[1673308477260,24.56234074,1322.1,1322.0,0.00215032]
[1673308477469,16.99862074,1322.1,1322.0,0.00215032]
[1673308478528,24.56234074,1322.1,1322.0,0.00215032]
[1673308479276,26.82799876,1322.1,1322.0,0.00215032]
[1673308481227,19.26427876,1322.1,1322.0,0.00215032]
[1673308481596,26.82799876,1322.1,1322.0,0.00215032]
[1673308482182,19.26427876,1322.1,1322.0,0.00215032]
[1673308482542,26.82799876,1322.1,1322.0,0.00215032]
[1673308482911,25.12707882,1322.1,1322.0,0.00215032]
[1673308483489,17.56335882,1322.1,1322.0,0.00215032]
[1673308483798,19.26128069,1322.1,1322.0,0.00215032]
[1673308484321,17.56335882,1322.1,1322.0,0.00215032]
[1673308485904,9.99963882,1322.1,1322.0,0.00215032]
[1673308486216,9.99963882,1322.1,1322.0,6.7e-06]
[1673308487636,27.96257503,1322.1,1322.0,6.7e-06]
[1673308487892,12.83513503,1322.1,1322.0,6.7e-06]
[1673308488067,25.12707882,1322.1,1322.0,6.7e-06]
[1673308488283,17.56335882,1322.1,1322.0,6.7e-06]
[1673308489108,20.39885503,1322.1,1322.0,6.7e-06]
[1673308489371,18.13319701,1322.1,1322.0,6.7e-06]
[1673308489555,25.69691701,1322.1,1322.0,6.7e-06]
[1673308489815,18.13319701,1322.1,1322.0,6.7e-06]
[1673308490796,33.26063701,1322.1,1322.0,6.7e-06]
[1673308491253,25.69691701,1322.1,1322.0,6.7e-06]
[1673308491838,22.8614208,1322.1,1322.0,6.7e-06]
[1673308494466,25.69324523,1322.1,1322.0,6.7e-06]
[1673308494685,18.12952523,1322.1,1322.0,6.7e-06]
[1673308504088,25.69324523,1322.1,1322.0,6.7e-06]
[1673308504296,2.43616527,1322.1,1322.0,6.7e-06]
[1673308504451,2.37016527,1322.1,1322.0,6.7e-06]
[1673308504963,17.49760527,1322.1,1322.0,6.7e-06]
[1673308505130,20.3954297,1322.1,1322.0,6.7e-06]
[1673308505345,18.12952523,1322.1,1322.0,6.7e-06]
[1673308505514,10.56580523,1322.1,1322.0,6.7e-06]
[1673308506446,3.00208523,1322.1,1322.0,6.7e-06]
[1673308506663,2.93608523,1322.1,1322.0,6.7e-06]
[1673308506894,18.06352523,1322.1,1322.0,6.7e-06]
[1673308507094,7.56813625,1322.0,1321.9,0.00213986]
[1673308507336,9.90244362,1322.0,1321.9,0.00213986]
[1673308508387,2.33815362,1322.0,1321.9,0.00213986]
[1673308508717,5.10397805,1322.0,1321.9,0.00213986]
[1673308508922,7.66997805,1322.0,1321.9,0.00213986]
[1673308510240,5.40167068,1322.0,1321.8,0.066]
[1673308510482,22.69632,1321.8,1321.7,8.2903]
[1673308510654,25.03119408,1321.8,1321.7,0.066]
[1673308510871,20.29757851,1321.8,1321.6,2.26009589]
[1673308511122,3.97057157,1321.7,1321.6,2.26009589]
[1673308511501,1.70169749,1321.7,1321.6,2.26009589]
[1673308512136,2.83614795,1321.7,1321.6,5.26009589]
[1673308512352,2.83614795,1321.7,1321.6,5.32609589]
[1673308514143,2.83614795,1321.7,1321.6,2.32609589]
[1673308514474,2.83614795,1321.7,1321.6,2.26009589]
[1673308516023,1.70169749,1321.7,1321.6,2.26009589]
[1673308516252,2.83496269,1321.7,1321.6,2.26009589]
[1673308517899,10.40094641,1321.7,1321.6,2.26009589]
[1673308518145,26.73191053,1321.7,1321.6,2.26009589]
[1673308519630,25.03290408,1321.7,1321.6,2.26009589]
[1673308520347,26.73128626,1321.7,1321.6,2.26009589]
[1673308521217,24.46241218,1321.7,1321.6,2.26009589]
[1673308522449,16.89640218,1321.7,1321.6,2.26009589]
[1673308523207,24.46241218,1321.7,1321.6,2.26009589]
[1673308523369,18.0283266,1321.7,1321.6,2.26009589]
[1673308523577,25.5943366,1321.7,1321.6,2.26009589]
[1673308526455,25.5943366,1321.7,1321.4,10.6094]
[1673308528064,25.5943366,1321.7,1321.4,10.60686941]
[1673308529492,10.4623166,1321.7,1321.4,20.07714995]
[1673308529700,8.76396442,1321.7,1321.4,35.21260995]
[1673308529959,16.33000442,1321.7,1321.4,35.21260995]
[1673308533336,16.33000442,1321.7,1321.4,35.23135049]
[1673308534424,16.33000442,1321.7,1321.4,39.02901113]
[1673308534425,8.76396442,1321.7,1321.4,39.02901113]
[1673308534635,1.19792442,1321.7,1321.4,46.59674113]
[1673308534846,1.13192442,1321.7,1321.4,46.59674113]
[1673308535540,1.13192442,1321.7,1321.4,39.02901113]
[1673308536653,8.69799442,1321.7,1321.4,39.02901113]
[1673308536864,8.76399442,1321.7,1321.4,39.02901113]
[1673308538214,1.19792442,1321.7,1321.4,39.02901113]
[1673308538420,1.13192442,1321.7,1321.4,39.02901113]
[1673308540255,2.8303066,1321.7,1321.4,39.02901113]
[1673308540468,1.13192442,1321.7,1321.4,39.02901113]
[1673308541895,2.8963066,1321.8,1321.5,3.79766064]
[1673308542107,2.8303066,1321.8,1321.6,22.69974]
[1673308542336,2.8303066,1321.8,1321.6,25.26574]
[1673308542548,2.8303066,1321.8,1321.6,22.76574]
[1673308543120,2.8303066,1321.8,1321.6,7.63258]
[1673308543475,2.8303066,1321.8,1321.6,11.43024064]
[1673308545574,1.13192442,1321.7,1321.6,11.43024064]
[1673308545823,2.8303066,1321.8,1321.6,11.43024064]
[1673308546259,1.13192442,1321.7,1321.6,11.43024064]
[1673308546937,2.8303066,1321.8,1321.6,14.5877401]
[1673308547195,1.13192442,1321.7,1321.6,14.5877401]
[1673308548353,1.13317122,1321.7,1321.6,14.5877401]
[1673308548725,1.69838218,1321.8,1321.6,25.1543201]
[1673308548940,1.13316814,1321.7,1321.6,25.1543201]
[1673308549153,1.13316868,1321.7,1321.6,25.1543201]
[1673308549392,1.69838218,1321.8,1321.6,25.1543201]
[1673308549605,1.13316784,1321.7,1321.6,25.1543201]
[1673308549930,1.13317123,1321.7,1321.6,25.1543201]
[1673308550088,1.13317114,1321.7,1321.6,25.1543201]
[1673308550298,3.96725626,1321.8,1321.6,25.1543201]
[1673308550511,3.96725626,1321.8,1321.6,25.15120913]
[1673308550721,1.1336998,1321.7,1321.6,25.15120913]
[1673308551169,1.13369567,1321.7,1321.6,25.15120913]
[1673308551522,1.13369552,1321.7,1321.6,25.15120913]
[1673308551731,1.13368794,1321.7,1321.6,25.15120913]
[1673308551880,4.03325626,1321.8,1321.6,25.15120913]
[1673308552091,1.13365474,1321.7,1321.6,25.15120913]
[1673308552350,1.13367968,1321.7,1321.6,25.15120913]
[1673308552659,4.03325626,1321.8,1321.6,25.15120913]
[1673308552823,1.13367484,1321.7,1321.6,21.99370967]
[1673308554570,1.13367484,1321.7,1321.6,14.42712967]
[1673308554723,4.03325626,1321.8,1321.6,14.42712967]
[1673308554932,1.13363597,1321.7,1321.6,14.42712967]
[1673308555160,1.13363745,1321.7,1321.6,14.42712967]
[1673308556433,1.13363745,1321.7,1321.6,25.25393464]
[1673308556767,1.13357411,1321.7,1321.6,25.25393464]
[1673308556927,1.13358142,1321.7,1321.6,25.25393464]
[1673308557141,4.03325626,1321.8,1321.6,25.25393464]
[1673308557349,1.13358055,1321.7,1321.6,25.25393464]
[1673308557600,4.03325626,1321.8,1321.6,25.25393464]
[1673308557819,1.13358528,1321.7,1321.6,25.25393464]
[1673308557975,4.03325626,1321.8,1321.6,25.25393464]
[1673308558180,1.13364397,1321.7,1321.6,25.25393464]
[1673308558442,4.03325626,1321.8,1321.6,25.25393464]
[1673308558761,3.96725626,1321.8,1321.6,25.25393464]
[1673308559343,16.26566378,1321.7,1321.6,3.066]
[1673308559547,16.26566378,1321.7,1321.5,10.6085]
[1673308559548,35.43073851,1321.7,1321.5,10.6745]
[1673308559804,2.83444285,1321.6,1321.5,10.6745]
[1673308560014,2.83444285,1321.6,1321.5,13.6745]
[1673308560545,1.13377714,1321.6,1321.5,3.066]
[1673308560712,2.83444285,1321.6,1321.5,3.0]
[1673308561703,1.13377714,1321.6,1321.5,10.56715]
[1673308561915,1.13377714,1321.6,1321.5,10.63315]
[1673308562499,1.13387556,1321.6,1321.5,37.13226064]
[1673308562703,1.13386797,1321.6,1321.5,34.31406996]
[1673308562962,1.13391162,1321.6,1321.5,34.31406996]
[1673308563174,1.70066571,1321.7,1321.5,34.31406996]
[1673308563339,2.83456834,1321.7,1321.5,34.31406996]
[1673308567542,1.76666571,1321.8,1321.6,3.79766064]
[1673308567906,1.13393497,1321.8,1321.7,29.49569064]
[1673308568218,1.13404252,1321.8,1321.7,29.56169064]
[1673308568425,4.03553979,1321.9,1321.7,29.56169064]
[1673308568639,1.13403457,1321.8,1321.7,29.56169064]
[1673308568802,4.03553979,1321.9,1321.7,33.74494477]
[1673308569036,3.96953979,1321.9,1321.7,33.74494477]
[1673308569378,1.13368961,1321.8,1321.7,33.74494477]
[1673308569551,2.83434105,1321.9,1321.8,1.1263649]
[1673308569761,1.70066571,1321.9,1321.8,23.8226849]
[1673308569974,1.70066571,1321.9,1321.8,28.13224587]
[1673308571236,2.83409372,1321.9,1321.8,28.13224587]
[1673308571584,2.83409372,1321.9,1321.8,31.92990651]
[1673308572317,1.13342801,1321.9,1321.8,31.92990651]
[1673308572535,2.83409372,1321.9,1321.8,31.92990651]
[1673308573272,1.13342801,1321.9,1321.8,31.92990651]
[1673308575157,2.90393997,1322.0,1321.8,42.49534651]
[1673308575314,1.13727426,1322.0,1321.9,37.05710064]
[1673308575524,1.13727426,1322.0,1321.9,43.02020329]
[1673308575735,0.00384625,1322.0,1321.9,43.02020329]
[1673308576576,0.00384625,1322.0,1321.9,39.22254265]
[1673308576833,1.13727426,1322.0,1321.9,7.73710265]
[1673308577011,2.83793997,1322.0,1321.9,3.066]
[1673308577217,2.83793997,1322.0,1321.9,3.0]
[1673308578411,1.70451196,1322.0,1321.9,3.0]
[1673308579781,17.40130033,1322.0,1321.9,3.0]
[1673308579990,17.46730033,1322.0,1321.9,3.0]
[1673308580202,25.03159033,1322.0,1321.8,4.1923649]
[1673308580368,2.83200075,1321.9,1321.8,7.92402554]
[1673308580570,2.83200075,1321.9,1321.8,7.99002554]
[1673308580781,10.39686075,1321.9,1321.8,7.99002554]
[1673308581019,10.46286075,1321.9,1321.8,7.99002554]
[1673308581239,9.33006045,1321.9,1321.8,7.99002554]
[1673308581620,1.76520045,1321.9,1321.8,7.99002554]
[1673308581830,1.69920045,1321.9,1321.8,7.99002554]
[1673308582257,2.83202229,1321.9,1321.8,7.99002554]
[1673308583246,9.26406045,1321.9,1321.8,7.99002554]
[1673308583419,2.89807276,1321.9,1321.8,7.99002554]
[1673308583767,2.83207276,1321.9,1321.8,9.88821809]
[1673308585192,11.53293453,1321.9,1321.8,4.1923649]
[1673308585421,17.46459408,1321.9,1321.8,4.1263649]
[1673308585633,2.33487408,1321.9,1321.8,4.1263649]
[1673308585821,2.26887408,1321.9,1321.8,1.1263649]
[1673308586290,3.9682508,1321.9,1321.8,1.1263649]
[1673308587833,3.9682508,1321.9,1321.8,23.8226849]
[1673308588060,3.9682508,1321.9,1321.8,23.8886849]
[1673308588273,1.69937672,1321.9,1321.8,26.8886849]
[1673308590669,2.83231329,1321.9,1321.8,26.8886849]
[1673308591744,1.69937672,1321.9,1321.8,26.8886849]
[1673308591949,2.83237232,1321.9,1321.8,26.8886849]
[1673308592808,2.83237232,1321.9,1321.8,34.4541249]
[1673308593027,2.83237232,1321.9,1321.8,41.69719803]
[1673308595228,2.83237232,1321.9,1321.8,34.13175803]
[1673308601834,0.57403171,1321.9,1321.8,30.68634554]
[1673308602303,5.17054476,1322.0,1321.8,30.68634554]
[1673308603834,2.26887408,1321.9,1321.8,30.68634554]
[1673308604517,5.17054476,1322.0,1321.8,30.68634554]
[1673308604824,2.26887408,1321.9,1321.8,15.55546554]
[1673308604994,2.26887408,1321.9,1321.8,23.12090554]
[1673308605204,2.26887408,1321.9,1321.8,30.68634554]
[1673308605658,2.26887408,1321.9,1321.8,23.12090554]
[1673308605868,2.26887408,1321.9,1321.8,30.68634554]
[1673308608333,2.26887408,1321.9,1321.8,7.99002554]
[1673308608462,2.26887408,1321.9,1321.8,23.12090554]
[1673308608676,2.26887408,1321.9,1321.8,30.68634554]
[1673308608879,2.26887408,1321.9,1321.8,23.12090554]
[1673308609141,2.26887408,1321.9,1321.8,15.55546554]
[1673308609354,2.26887408,1321.9,1321.8,7.99002554]
[1673308609929,2.26887408,1321.9,1321.8,4.1923649]
[1673308610145,20.23041851,1321.9,1321.8,4.1263649]
[1673308610355,12.73155851,1321.9,1321.8,1.1263649]
[1673308610578,10.46268443,1321.9,1321.8,1.1263649]
[1673308611210,12.96268443,1321.9,1321.8,1.1263649]
[1673308611448,10.46268443,1321.9,1321.8,1.1263649]
[1673308612559,18.02754443,1321.9,1321.8,1.1263649]
[1673308617031,25.59240443,1321.9,1321.8,1.1263649]
[1673308620708,18.02754443,1321.9,1321.8,1.1263649]
[1673308620904,10.46268443,1321.9,1321.8,1.1263649]
[1673308622481,12.73029132,1321.9,1321.6,15.19858]
[1673308622690,2.83448774,1321.8,1321.6,18.35679619]
[1673308622919,2.83448774,1321.8,1321.6,25.92337619]
[1673308623505,2.83648774,1321.8,1321.6,25.92137619]
[1673308623830,2.83448774,1321.8,1321.6,25.92337619]
[1673308624656,2.83448774,1321.8,1321.6,28.73946783]
[1673308625086,2.83448774,1321.8,1321.6,25.92337619]
[1673308625708,2.83448774,1321.8,1321.6,28.73946704]
[1673308625934,2.83448774,1321.8,1321.6,28.73946684]
[1673308626177,2.83448774,1321.8,1321.6,28.73725548]
[1673308626494,2.83448774,1321.8,1321.6,25.92116483]
[1673308627197,2.83448774,1321.8,1321.6,18.35458483]
[1673308627407,2.83448774,1321.8,1321.6,25.92116483]
[1673308630308,2.83448774,1321.8,1321.6,28.73726]
[1673308632120,1.13379963,1321.8,1321.6,28.73726]
[1673308632977,2.83448774,1321.8,1321.6,28.73726]
[1673308633381,1.13379963,1321.8,1321.6,28.73726]
[1673308636112,1.13385805,1321.8,1321.6,28.73726]
[1673308636365,19.617095,1321.9,1321.6,28.73726]
[1673308636366,12.052195,1321.9,1321.6,28.73726]
[1673308637006,12.052195,1321.9,1321.6,28.75515584]
[1673308637404,1.13390936,1321.8,1321.6,28.75515584]
[1673308637733,1.13391004,1321.8,1321.6,28.75515584]
[1673308637946,12.052195,1321.9,1321.6,28.75515584]
[1673308638121,1.1339095,1321.8,1321.6,28.75515584]
[1673308638342,1.13391012,1321.8,1321.6,28.75515584]
[1673308638687,1.13394597,1321.8,1321.6,28.75515584]
[1673308638847,2.83463408,1321.8,1321.6,28.75515584]
[1673308639052,1.13394597,1321.8,1321.6,28.75515584]
[1673308639265,12.052195,1321.9,1321.6,28.75515584]
[1673308639479,1.13397428,1321.8,1321.6,28.75515584]
[1673308639681,12.052195,1321.9,1321.6,28.75515584]
[1673308639903,1.13397151,1321.8,1321.6,28.75515584]
[1673308640113,12.052195,1321.9,1321.6,28.75515584]
[1673308640572,2.83467745,1321.8,1321.6,28.75515584]
[1673308641095,2.83467745,1321.8,1321.6,32.55281648]
[1673308641265,1.13398934,1321.8,1321.6,40.11939648]
[1673308641472,2.83474062,1321.8,1321.6,40.11939648]
[1673308641822,2.83474062,1321.8,1321.6,32.55281648]
[1673308643042,1.13416584,1321.7,1321.6,29.73672131]
[1673308643254,4.034295,1321.8,1321.6,34.61417672]
[1673308643515,1.13416567,1321.7,1321.6,26.57872512]
[1673308643688,1.13416673,1321.7,1321.6,31.45618208]
[1673308644035,1.13416651,1321.7,1321.6,31.45618208]
[1673308644250,1.76668811,1321.8,1321.6,31.45618208]
[1673308644483,1.70068811,1321.8,1321.6,29.57872512]
[1673308644681,1.1341564,1321.7,1321.6,29.57872512]
[1673308644829,1.70068811,1321.8,1321.6,39.15546636]
[1673308645046,1.13417538,1321.7,1321.6,32.39486075]
[1673308645403,1.13417337,1321.7,1321.6,34.27227932]
[1673308645577,1.70068811,1321.8,1321.6,34.27227932]
[1673308645793,1.13417783,1321.7,1321.6,32.39486075]
[1673308645999,1.70068811,1321.8,1321.6,34.27228336]
[1673308646197,1.70068811,1321.8,1321.6,32.39486075]
[1673308646198,1.13417775,1321.7,1321.6,32.39486075]
[1673308646563,2.83485844,1321.8,1321.6,39.43708274]
[1673308646778,1.13419813,1321.7,1321.6,37.55965929]
[1673308647094,1.1342085,1321.7,1321.6,47.00365363]
[1673308647245,1.70068811,1321.8,1321.6,47.00365363]
[1673308647246,2.83488678,1321.8,1321.6,47.00365363]
[1673308647456,2.83488678,1321.8,1321.6,42.31010366]
[1673308648768,1.13417175,1321.8,1321.6,42.31010366]
[1673308648987,1.13416934,1321.8,1321.7,3.79766064]
[1673308649138,4.0348609,1321.9,1321.8,1.12296906]
[1673308649139,2.90136592,1321.9,1321.8,1.12296906]